fUSD/lending_fUSD_20250104
["ID","MTS","AMOUNT","RATE_DAILY","PERIOD"]
[347654155,1736025032706,-1000.0,9.98e-05,2]
[347654157,1736025032715,-1000.0,9.98e-05,3]
[347654159,1736025032724,-1000.0,9.98e-05,2]
[347654161,1736025032733,-1002.0,9.98e-05,2]
[347654163,1736025032743,-1000.0,9.98e-05,2]
[347654165,1736025032751,-1000.0,9.98e-05,2]
[347654167,1736025032761,-20097.6969045,9.99e-05,2]
[347654169,1736025032771,-1028.08,9.995e-05,2]
[347654171,1736025032780,-476.92,9.996e-05,2]
[347654173,1736025032789,-500.0,9.999e-05,2]
[347654175,1736025032798,-500.0,9.999e-05,2]
[347654177,1736025032807,-500.0,9.999e-05,2]
[347654179,1736025032816,-500.0,9.999e-05,2]
[347654181,1736025032824,-500.0,9.999e-05,2]
[347654183,1736025032834,-434.17701838,9.999e-05,2]
[347654185,1736025032843,-500.0,9.999e-05,2]
[347654187,1736025032852,-500.0,9.999e-05,2]
[347654189,1736025032862,-749.79,9.999e-05,2]
[347654191,1736025032871,-500.0,9.999e-05,2]
[347654193,1736025032880,-500.0,9.999e-05,2]
[347654195,1736025032889,-500.0,9.999e-05,2]
[347654197,1736025032898,-500.0,9.999e-05,2]
[347654199,1736025032907,-500.0,9.999e-05,2]
[347654201,1736025032916,-1077.48,9.999e-05,2]
[347654203,1736025032925,-500.0,9.999e-05,2]
[347654205,1736025032934,-500.0,9.999e-05,2]
[347654207,1736025032943,-500.0,9.999e-05,2]
[347654209,1736025032952,-1372501.27835677,0.0001,2]
[347654211,1736025032964,-1943.98,0.0001,2]
[347654213,1736025032975,-1181.08180393,0.0001,2]
[347654603,1736025037775,-468.395,9.999e-05,2]
[347654604,1736025037787,-31.605,9.999e-05,2]
[347654605,1736025037796,-371.204,0.0001,2]
[347654606,1736025037807,-2513.2158088,0.0001,2]
[347654607,1736025037830,-969.325,0.0001,2]
[347654608,1736025037841,-24662.0,0.0001,2]
[347654609,1736025037851,-303715.5663615,0.0001,2]
[347654610,1736025037886,-718.55,9.999e-05,2]
[347654611,1736025037895,-16826.33646173,0.0001,2]
[347654612,1736025037910,-4000.0,0.0001,2]
[347654613,1736025037921,-6823.99999999,0.0001,2]
[347654614,1736025037939,-1363.83747749,0.0001,2]
[347654615,1736025037950,-391279.88293854,0.0001,2]
[347654616,1736025037961,-14609.92353959,0.0001,2]
[347654617,1736025037972,-1721.48259596,0.0001,2]
[347654618,1736025037983,-2360.73409,0.0001,2]
[347654619,1736025037995,-500.0,0.0001,2]
[347654620,1736025038006,-9466.93056588,0.0001,2]
[347654621,1736025038017,-480.41476839,0.0001,2]
[347654622,1736025038029,-4865.79896752,0.0001,2]
[347654623,1736025038040,-474.1866154,0.0001,2]
[347654624,1736025038052,-3389.0602531,0.0001,2]
[347654625,1736025038069,-517.7691157,0.0001,2]
[347654626,1736025038079,-8292.53628286,0.0001,2]
[347654629,1736025042075,-8642.3599801,0.0001,2]
[347654630,1736025042130,-2768.128,0.0001,2]
[347654631,1736025042143,-870.59270918,0.0001,2]
[347654632,1736025042187,-3719.27464023,0.0001,2]
[347654633,1736025042199,-1866.05,0.0001,2]
[347654634,1736025042210,-10000.0,0.0001,2]
[347654635,1736025042221,-39044.41985268,0.0001,2]
[347654636,1736025042232,-495.00000005,0.0001,2]
[347654637,1736025042245,-3529.65000033,0.0001,2]
[347654638,1736025042256,-2928.60268358,0.0001,2]
[347654639,1736025042303,-4126.13424394,0.0001,2]
[347654640,1736025042360,-257.44687609,0.0001,2]
[347654641,1736025042371,-401.04327963,0.0001,2]
[347654644,1736025042796,-5759.44243586,0.0001,2]
[347654646,1736025042852,-12623.09818251,0.0001,2]
[347654647,1736025042862,-1001.4501,0.0001,2]
[347654648,1736025042872,-2695.45171749,0.0001,3]
[347654649,1736025042884,-2012.66472073,0.0001,3]
[347654650,1736025042909,-1320.05848825,0.0001,3]
[347654651,1736025042921,-1715.0,0.0001,3]
[347654652,1736025042932,-1950.0,0.0001,3]
[347654653,1736025042944,-63516.58198658,0.0001,3]
[347654654,1736025042955,-2247.9580385,0.0001,3]
[347654655,1736025042974,-1489.33866302,0.0001,3]
[347654656,1736025042983,-1000.0,0.0001,2]
[347654657,1736025042993,-25433.78942825,0.0001,4]
[347654658,1736025043005,-27475.000004,0.0001,4]
[347654659,1736025043016,-1947.848,0.0001,4]
[347654660,1736025043030,-495.47396858,0.0001,4]
[347654661,1736025043041,-26938.54496786,0.0001,4]
[347654662,1736025043053,-11255.27028758,0.0001,4]
[347654663,1736025043084,-360.20251,0.0001,4]
[347654928,1736025045788,-6504.529655,0.0001,4]
[347654930,1736025045800,-11344.59220339,0.0001,4]
[347654933,1736025045815,-8244.74897534,0.0001,4]
[347654935,1736025045824,-24409.06947745,0.0001,2]
[347654937,1736025045837,-44519.26210015,0.0001,2]
[347654939,1736025045848,-1070.85601,0.0001,2]
[347654946,1736025045904,-838.55288175,0.0001,2]
[347654949,1736025045915,-1695.07477946,0.0001,2]
[347654951,1736025045926,-866.37474104,0.0001,2]
[347654953,1736025045939,-12532.46973317,0.0001,2]
[347654955,1736025045949,-7391.51999648,0.0001,2]
[347654958,1736025045960,-4366.0,0.0001,2]
[347654960,1736025045971,-1065.83165509,0.0001,2]
[347654962,1736025045982,-3554.34587003,0.0001,2]
[347654967,1736025046020,-16020.74743192,0.0001,2]
[347654969,1736025046032,-1787.30255397,0.0001,2]
[347654971,1736025046043,-1235.811747,0.0001,2]
[347654974,1736025046054,-192976.11923922,0.0001,2]
[347654977,1736025046076,-996.32490086,0.0001,2]
[347654980,1736025046099,-721.22,0.0001,2]
[347657198,1736025303311,151.0,0.0001,30]
[347657199,1736025303632,151.0,0.000112,30]
[347657205,1736025590564,700.0,0.0002,120]
[347657206,1736025603735,151.0,0.0001,30]
[347657207,1736025604677,151.0,0.000115,30]
[347657208,1736025608622,500.0,0.0002,120]
[347657209,1736025625112,566.76,0.0002,120]
[347657213,1736025649888,4216.0,7.14e-05,2]
[347657214,1736025649910,224.0,7.14e-05,2]
[347657222,1736025904085,151.0,0.0001,30]
[347657223,1736025904484,151.0,0.00012,30]
[347657224,1736025926554,278.8,0.0002,120]
[347657246,1736026163147,-528.492734,8.219e-05,2]
[347657247,1736026203229,152.0,0.0001,30]
[347657263,1736026232004,-1235.047266,8.219e-05,2]
[347657264,1736026232014,-500.0,8.22e-05,2]
[347657265,1736026232024,-13.16102321,8.22e-05,2]
[347657266,1736026232121,-518.10080565,8.22e-05,2]
[347657267,1736026232235,-6336.85953137,8.22e-05,2]
[347657268,1736026232245,-1100.0,8.766e-05,2]
[347657269,1736026232255,-500.0,8.766e-05,2]
[347657270,1736026232265,-250.0,8.883e-05,2]
[347657271,1736026232276,-250.0,8.883e-05,2]
[347657272,1736026232286,-286.15,8.92e-05,2]
[347657273,1736026232297,-218.08,9.129e-05,2]
[347657274,1736026232307,-600.0,9.2e-05,3]
[347657275,1736026232318,-771.69,9.2e-05,2]
[347657276,1736026232328,-187.55,9.286e-05,2]
[347657277,1736026232339,-1200.0,9.3e-05,3]
[347657278,1736026232350,-771.69,9.3e-05,2]
[347657279,1736026232360,-437.65,9.3e-05,2]
[347657280,1736026232369,-771.69,9.3e-05,2]
[347657281,1736026232379,-1000.0,9.377e-05,2]
[347657282,1736026232390,-1800.0,9.4e-05,3]
[347657283,1736026232399,-492.031,9.5e-05,2]
[347657284,1736026232409,-437.65,9.5e-05,2]
[347657285,1736026232419,-771.69,9.5e-05,2]
[347657286,1736026232429,-2400.0,9.5e-05,3]
[347657287,1736026232439,-250.0,9.504e-05,2]
[347657288,1736026232448,-771.69,9.51e-05,2]
[347657289,1736026232459,-500.0,9.59e-05,2]
[347657291,1736026232468,-3000.0,9.6e-05,3]
[347657293,1736026232479,-600.0,9.7e-05,3]
[347657295,1736026232488,-600.0,9.8e-05,3]
[347657297,1736026232497,-600.0,9.9e-05,3]
[347657298,1736026232507,-455.5,9.974e-05,2]
[347657299,1736026232517,-1000.0,9.98e-05,2]
[347657300,1736026232526,-1000.0,9.98e-05,2]
[347657302,1736026232535,-90413.68375886,9.988e-05,2]
[347657303,1736026232548,-1301.24185652,9.988e-05,2]
[347657313,1736026238088,-19697.4,9.988e-05,2]
[347657314,1736026238365,-2966.71699,9.988e-05,2]
[347657318,1736026240126,-10310.28202644,9.988e-05,2]
[347657319,1736026240198,-23043.38806092,9.988e-05,2]
[347657320,1736026240210,-13866.38421108,9.988e-05,2]
[347657321,1736026240259,-469.31070039,9.988e-05,2]
[347657322,1736026240270,-432.9049996,9.988e-05,2]
[347657323,1736026240282,-4755.52779728,9.988e-05,2]
[347657324,1736026240293,-9541.59174111,9.988e-05,2]
[347657330,1736026243151,-498.14638309,9.988e-05,2]
[347657331,1736026243210,-11192.40408279,9.988e-05,2]
[347657332,1736026243269,-500.0,9.988e-05,2]
[347657333,1736026245966,-9788.07941371,9.988e-05,2]
[347657334,1736026246081,-1525.14,9.988e-05,2]
[347657336,1736026305149,12358.93190708,0.0002,120]
[347657341,1736026504277,152.0,9.988e-05,30]
[347657344,1736026636679,162.0,9.988e-05,30]
[347657345,1736026637216,162.0,0.0001199,30]
[347657347,1736026758888,-157.21,7.403e-05,2]
[347657348,1736026758915,-1675.36,8.219e-05,2]
[347657349,1736026758943,-500.0,8.22e-05,2]
[347657350,1736026758968,-1000.0,8.766e-05,2]
[347657351,1736026759007,-250.0,9.276e-05,2]
[347657352,1736026759035,-417.43,9.276e-05,2]
[347657354,1736026781823,-500.0,9.59e-05,2]
[347657355,1736026781848,-500.0,9.862e-05,2]
[347657356,1736026803257,152.0,9.988e-05,30]
[347657364,1736027103970,152.0,9.988e-05,30]
[347657369,1736027354148,-174.81,7.436e-05,2]
[347657370,1736027354168,-166.38165772,8.766e-05,2]
[347657372,1736027403831,152.53034419,9.988e-05,30]
[347657379,1736027432232,-333.61834228,8.766e-05,2]
[347657380,1736027432242,-1000.0,8.766e-05,2]
[347657381,1736027432252,-250.0,9.264e-05,2]
[347657382,1736027432262,-150.04,9.275e-05,2]
[347657383,1736027432273,-161.48,9.297e-05,2]
[347657384,1736027432282,-471.792,9.5e-05,2]
[347657385,1736027432292,-185.90543697,9.5e-05,2]
[347657386,1736027432301,-718.55698653,9.5e-05,2]
[347657387,1736027432311,-1000.0,9.606e-05,2]
[347657388,1736027432320,-150.0,9.836e-05,2]
[347657389,1736027432330,-466.55920719,9.862e-05,2]
[347657390,1736027432340,-250.8032,9.9e-05,2]
[347657391,1736027432349,-503.61922105,9.987e-05,2]
[347657392,1736027432359,-500.0,9.987e-05,2]
[347657393,1736027432369,-500.0,9.987e-05,2]
[347657394,1736027432380,-500.0,9.987e-05,2]
[347657395,1736027432389,-246.73597229,9.987e-05,2]
[347657396,1736027432406,-253.26402771,9.987e-05,2]
[347657397,1736027432416,-500.0,9.987e-05,2]
[347657398,1736027432425,-500.0,9.987e-05,2]
[347657399,1736027432435,-500.0,9.987e-05,2]
[347657400,1736027432445,-500.0,9.987e-05,2]
[347657401,1736027432455,-500.0,9.987e-05,2]
[347657402,1736027432465,-500.0,9.987e-05,2]
[347657403,1736027432475,-500.0,9.987e-05,2]
[347657404,1736027432485,-500.0,9.987e-05,2]
[347657405,1736027432495,-500.0,9.987e-05,2]
[347657406,1736027432505,-500.0,9.987e-05,2]
[347657407,1736027432514,-1032.59,9.987e-05,2]
[347657408,1736027432524,-251.694611,9.987e-05,2]
[347657409,1736027432536,-694.845389,9.987e-05,2]
[347657410,1736027432545,-3747.211286,9.988e-05,2]
[347657411,1736027432557,-3332.6871248,9.988e-05,2]
[347657412,1736027432568,-6897.6099792,9.988e-05,2]
[347657413,1736027432600,-27328.93922316,9.988e-05,2]
[347657414,1736027432609,-1267.0,9.999e-05,2]
[347657415,1736027432619,-151.148,9.999e-05,2]
[347657416,1736027432629,-2014.0,9.999e-05,2]
[347657417,1736027432639,-634.0,9.999e-05,2]
[347657418,1736027432649,-150.419,9.999e-05,2]
[347657419,1736027432659,-566.0,9.999e-05,2]
[347657420,1736027432668,-1940.0,9.999e-05,2]
[347657421,1736027432678,-1039.949,9.999e-05,2]
[347657423,1736027432688,-831.0,9.999e-05,2]
[347657425,1736027432697,-3775.0,9.999e-05,2]
[347657427,1736027432706,-1258.0,9.999e-05,2]
[347657428,1736027432715,-3722.0,9.999e-05,2]
[347657430,1736027432725,-536.0,9.999e-05,2]
[347657432,1736027432734,-150.0,9.999e-05,2]
[347657433,1736027432744,-250.0,9.999e-05,2]
[347657435,1736027432754,-150.734,9.999e-05,2]
[347657437,1736027432763,-500.0,9.999e-05,2]
[347657438,1736027432772,-822.464,9.999e-05,2]
[347657439,1736027432781,-500.0,9.999e-05,2]
[347657440,1736027432791,-500.0,9.999e-05,2]
[347657441,1736027432801,-500.0,9.999e-05,2]
[347657443,1736027432810,-440.72294948,9.999e-05,2]
[347657444,1736027432819,-500.0,9.999e-05,2]
[347657445,1736027432829,-500.0,9.999e-05,2]
[347657446,1736027432838,-504.02432633,9.999e-05,2]
[347657447,1736027432847,-510.17852796,9.999e-05,2]
[347657448,1736027432857,-613.45854691,9.999e-05,2]
[347657449,1736027432866,-500.0,9.999e-05,2]
[347657450,1736027432876,-503.23446991,9.999e-05,2]
[347657451,1736027432885,-500.5735156,9.999e-05,2]
[347657452,1736027432895,-503.47094165,9.999e-05,2]
[347657453,1736027432905,-502.18213055,9.999e-05,2]
[347657454,1736027432914,-408.26840675,9.999e-05,2]
[347657455,1736027432922,-532.50425771,9.999e-05,2]
[347657456,1736027432931,-501.6613393,9.999e-05,2]
[347657457,1736027432940,-500.0,9.999e-05,2]
[347657458,1736027432949,-585.38276051,9.999e-05,2]
[347657459,1736027432959,-634.97289211,9.999e-05,2]
[347657460,1736027432968,-500.0,9.999e-05,2]
[347657461,1736027432977,-185.90543697,9.999e-05,2]
[347657462,1736027433192,-622.43868716,9.999e-05,2]
[347657463,1736027433202,-500.0,9.999e-05,2]
[347657464,1736027433212,-549.79610762,9.999e-05,2]
[347657465,1736027433221,-688.61,9.999e-05,2]
[347657466,1736027433231,-500.0,9.999e-05,2]
[347657467,1736027433241,-500.0,9.999e-05,2]
[347657468,1736027433250,-513.0,0.0001,2]
[347657469,1736027433259,-33885.42044286,0.0001,2]
[347657470,1736027433276,-450.0,0.0001,2]
[347657471,1736027433288,-450.0,0.0001,2]
[347657482,1736027438228,-1591.59,8.219e-05,2]
[347657483,1736027438238,-168.0,9.999e-05,2]
[347657484,1736027438249,-500.0,9.999e-05,2]
[347657485,1736027438258,-5446.82166318,0.0001,2]
[347657486,1736027438287,-547.18977324,0.0001,2]
[347657487,1736027438299,-896.4525,0.0001,2]
[347657488,1736027438344,-102545.71320342,0.0001,2]
[347657489,1736027438355,-417.82226219,0.0001,2]
[347657490,1736027438366,-1633.81961151,0.0001,2]
[347657503,1736027440226,-500.0,0.0001,2]
[347657504,1736027440340,-24257.80039811,0.0001,2]
[347657505,1736027443175,-229.0,9.999e-05,2]
[347657506,1736027443185,-135376.70883151,0.0001,2]
[347657507,1736027443197,-2726.87761735,0.0001,2]
[347657508,1736027443292,-21409.91821442,0.0001,2]
[347657509,1736027443303,-485.305,0.0001,2]
[347657510,1736027443314,-7749.73719546,0.0001,2]
[347657511,1736027443353,-946115.83931671,0.0001,2]
[347657513,1736027446236,-300.0,0.0001,2]
[347657514,1736027446248,-401.21832325,0.0001,2]
[347657515,1736027446259,-492.405,0.0001,2]
[347657516,1736027446317,-679.40528476,0.0001,2]
[347657517,1736027446328,-1253.16529958,0.0001,2]
[347657518,1736027446339,-500.0,0.0001,2]
[347657519,1736027446350,-6749.082116,0.0001,2]
[347657520,1736027446377,-322.8916,0.0001,2]
[347657521,1736027446388,-583.38421787,0.0001,2]
[347657522,1736027446403,-1149.357475,0.0001,2]
[347657523,1736027446414,-16659.60790308,0.0001,2]
[347657524,1736027446443,-325.91,0.0001,2]
[347657525,1736027446453,-46091.27029651,0.0001,2]
[347657545,1736027714148,171.08790929,0.0002,120]
[347657554,1736028191658,1000.0,0.00017,60]
[347657557,1736028331794,171.054459,0.0002,120]
[347657573,1736028632358,-1582.0,8.219e-05,2]
[347657574,1736028632368,-156.11927755,8.408e-05,2]
[347657575,1736028632379,-1731.04469114,8.408e-05,2]
[347657576,1736028632456,-1488.28660582,8.408e-05,2]
[347657577,1736028632465,-250.0,8.408e-05,2]
[347657578,1736028632657,-239.44,8.428e-05,2]
[347657579,1736028632667,-611.43783356,8.716e-05,2]
[347657580,1736028632679,-2607.89346339,8.716e-05,2]
[347657581,1736028632689,-200.0,8.716e-05,2]
[347657582,1736028632698,-900.0,8.766e-05,2]
[347657583,1736028632707,-500.0,8.766e-05,2]
[347657584,1736028632717,-684.12,8.934e-05,2]
[347657585,1736028632726,-165.75,8.938e-05,2]
[347657586,1736028632735,-250.0,8.959e-05,2]
[347657587,1736028632745,-150.0,9e-05,2]
[347657588,1736028632754,-150.0,9e-05,2]
[347657589,1736028632764,-150.0,9e-05,2]
[347657590,1736028632774,-250.0,9.021e-05,2]
[347657591,1736028632783,-150.0,9.067e-05,2]
[347657592,1736028632792,-1000.0,9.103e-05,2]
[347657593,1736028632801,-150.0,9.133e-05,2]
[347657594,1736028632811,-150.0,9.167e-05,2]
[347657595,1736028632820,-873.58,9.178e-05,2]
[347657596,1736028632829,-1957.11,9.178e-05,2]
[347657597,1736028632838,-150.0,9.178e-05,2]
[347657598,1736028632847,-300.0,9.199e-05,2]
[347657599,1736028632859,-150.0,9.2e-05,2]
[347657600,1736028632868,-150.0,9.2e-05,2]
[347657601,1736028632878,-1100.0,9.2e-05,3]
[347657602,1736028632887,-150.0,9.267e-05,2]
[347657603,1736028632897,-2200.0,9.3e-05,3]
[347657604,1736028632906,-150.0,9.333e-05,2]
[347657605,1736028632916,-150.0,9.333e-05,2]
[347657606,1736028632925,-3300.0,9.4e-05,3]
[347657607,1736028632935,-150.0,9.4e-05,2]
[347657608,1736028632945,-150.0,9.4e-05,2]
[347657609,1736028632955,-150.0,9.467e-05,2]
[347657610,1736028632964,-458.828,9.5e-05,2]
[347657611,1736028632973,-30000.0,9.5e-05,2]
[347657612,1736028632983,-150.0,9.5e-05,2]
[347657613,1736028632992,-4400.0,9.5e-05,3]
[347657614,1736028633001,-150.0,9.533e-05,2]
[347657615,1736028633010,-150.0,9.6e-05,2]
[347657616,1736028633019,-150.0,9.6e-05,2]
[347657617,1736028633028,-5600.0,9.6e-05,3]
[347657618,1736028633037,-150.0,9.667e-05,2]
[347657619,1736028633047,-150.0,9.667e-05,2]
[347657620,1736028633056,-19953.1567,9.7e-05,2]
[347657621,1736028633065,-1000.0,9.7e-05,2]
[347657622,1736028633074,-1100.0,9.7e-05,3]
[347657623,1736028633084,-150.0,9.733e-05,2]
[347657624,1736028633094,-1969.91740601,9.8e-05,2]
[347657625,1736028633104,-16837.47046872,9.8e-05,2]
[347657626,1736028633113,-133893.0634,9.8e-05,2]
[347657627,1736028633122,-150.0,9.8e-05,2]
[347657628,1736028633131,-150.0,9.8e-05,2]
[347657629,1736028633141,-1100.0,9.8e-05,3]
[347657630,1736028633151,-150.0,9.833e-05,2]
[347657631,1736028633160,-150.0,9.867e-05,2]
[347657632,1736028633170,-500.0,9.897e-05,2]
[347657633,1736028633179,-500.0,9.897e-05,2]
[347657634,1736028633189,-500.0,9.897e-05,2]
[347657635,1736028633198,-500.0,9.897e-05,2]
[347657636,1736028633208,-500.0,9.897e-05,2]
[347657637,1736028633217,-500.0,9.897e-05,2]
[347657638,1736028633227,-500.0,9.897e-05,2]
[347657639,1736028633236,-500.0,9.897e-05,2]
[347657640,1736028633246,-500.0,9.897e-05,2]
[347657641,1736028633255,-500.0,9.897e-05,2]
[347657642,1736028633264,-500.0,9.897e-05,2]
[347657643,1736028633274,-500.0,9.897e-05,2]
[347657644,1736028633283,-500.0,9.897e-05,2]
[347657645,1736028633292,-500.0,9.897e-05,2]
[347657646,1736028633302,-500.0,9.897e-05,2]
[347657647,1736028633312,-500.0,9.897e-05,2]
[347657648,1736028633321,-500.0,9.897e-05,2]
[347657649,1736028633331,-500.0,9.897e-05,2]
[347657650,1736028633340,-500.78172137,9.897e-05,2]
[347657651,1736028633356,-500.0,9.897e-05,2]
[347657652,1736028633366,-481.79852131,9.897e-05,2]
[347657653,1736028633375,-500.0,9.897e-05,2]
[347657654,1736028633384,-500.0,9.897e-05,2]
[347657655,1736028633393,-500.0,9.897e-05,2]
[347657656,1736028633403,-500.0,9.897e-05,2]
[347657657,1736028633413,-500.0,9.897e-05,2]
[347657658,1736028633422,-500.0,9.897e-05,2]
[347657659,1736028633432,-500.0,9.897e-05,2]
[347657660,1736028633441,-500.0,9.897e-05,2]
[347657661,1736028633451,-500.0,9.897e-05,2]
[347657662,1736028633460,-401.1394651,9.897e-05,2]
[347657663,1736028633469,-500.0,9.897e-05,2]
[347657664,1736028633478,-500.0,9.897e-05,2]
[347657665,1736028633488,-603.68840247,9.897e-05,2]
[347657666,1736028633497,-500.0,9.897e-05,2]
[347657667,1736028633507,-500.0,9.897e-05,2]
[347657668,1736028633516,-500.0,9.897e-05,2]
[347657669,1736028633525,-368.07812442,9.897e-05,2]
[347657670,1736028633534,-500.0,9.897e-05,2]
[347657671,1736028633543,-500.0,9.897e-05,2]
[347657672,1736028633552,-500.0,9.897e-05,2]
[347657673,1736028633561,-500.0,9.898e-05,2]
[347657674,1736028633571,-500.0,9.898e-05,2]
[347657675,1736028633580,-500.0,9.898e-05,2]
[347657676,1736028633589,-500.0,9.898e-05,2]
[347657677,1736028633598,-500.0,9.898e-05,2]
[347657678,1736028633607,-500.0,9.898e-05,2]
[347657679,1736028633617,-500.0,9.898e-05,2]
[347657680,1736028633626,-500.0,9.898e-05,2]
[347657681,1736028633635,-500.0,9.898e-05,2]
[347657682,1736028633644,-500.0,9.898e-05,2]
[347657683,1736028633653,-500.0,9.898e-05,2]
[347657684,1736028633662,-500.0,9.899e-05,2]
[347657685,1736028633672,-166.649,9.899e-05,2]
[347657686,1736028633682,-500.0,9.899e-05,2]
[347657687,1736028633691,-500.0,9.899e-05,2]
[347657688,1736028633701,-500.0,9.899e-05,2]
[347657689,1736028633710,-500.0,9.899e-05,2]
[347657690,1736028633720,-644.58,9.899e-05,2]
[347657691,1736028633729,-500.0,9.899e-05,2]
[347657692,1736028633738,-500.0,9.899e-05,2]
[347657693,1736028633748,-500.0,9.899e-05,2]
[347657694,1736028633757,-500.0,9.899e-05,2]
[347657695,1736028633766,-500.0,9.899e-05,2]
[347657696,1736028633776,-500.0,9.899e-05,2]
[347657697,1736028633786,-500.0,9.899e-05,2]
[347657698,1736028633795,-500.0,9.899e-05,2]
[347657699,1736028633805,-500.0,9.899e-05,2]
[347657700,1736028633814,-500.0,9.899e-05,2]
[347657701,1736028633824,-500.0,9.899e-05,2]
[347657702,1736028633836,-500.0,9.899e-05,2]
[347657703,1736028633846,-500.0,9.899e-05,2]
[347657704,1736028633855,-500.0,9.899e-05,2]
[347657705,1736028633865,-500.0,9.899e-05,2]
[347657706,1736028633874,-500.0,9.899e-05,2]
[347657707,1736028633884,-659.92,9.899e-05,2]
[347657708,1736028633893,-500.0,9.899e-05,2]
[347657709,1736028633903,-790.4088,9.9e-05,2]
[347657710,1736028633912,-25126.2692,9.9e-05,2]
[347657711,1736028633921,-15858.7816,9.9e-05,2]
[347657712,1736028633932,-21113.4841,9.9e-05,2]
[347657713,1736028633941,-35648.791,9.9e-05,2]
[347657714,1736028633951,-1000.0,9.9e-05,2]
[347657715,1736028633960,-4483.3406,9.9e-05,2]
[347657716,1736028633969,-223.8747,9.9e-05,2]
[347657717,1736028633978,-55555.0,9.9e-05,2]
[347657718,1736028633988,-1100.0,9.9e-05,3]
[347657719,1736028633997,-150.0,9.933e-05,2]
[347657720,1736028634006,-500.0,9.972e-05,2]
[347657721,1736028634016,-500.0,9.972e-05,2]
[347657722,1736028634026,-500.0,9.972e-05,2]
[347657723,1736028634035,-500.0,9.972e-05,2]
[347657724,1736028634044,-500.0,9.972e-05,2]
[347657725,1736028634054,-261.43407596,9.972e-05,2]
[347657726,1736028634064,-500.0,9.972e-05,2]
[347657727,1736028634073,-500.0,9.972e-05,2]
[347657728,1736028634082,-500.0,9.972e-05,2]
[347657729,1736028634092,-500.0,9.972e-05,2]
[347657730,1736028634102,-500.0,9.972e-05,2]
[347657731,1736028634111,-500.0,9.972e-05,2]
[347657732,1736028634120,-500.0,9.972e-05,2]
[347657733,1736028634130,-500.0,9.972e-05,2]
[347657734,1736028634140,-500.0,9.972e-05,2]
[347657735,1736028634150,-186.41195318,9.972e-05,2]
[347657736,1736028634160,-500.0,9.972e-05,2]
[347657737,1736028634170,-500.0,9.972e-05,2]
[347657738,1736028634181,-22004.0,9.973e-05,2]
[347657739,1736028634191,-500.0,9.973e-05,2]
[347657740,1736028634203,-160.24238809,9.973e-05,2]
[347657741,1736028634212,-159.95982109,9.973e-05,2]
[347657742,1736028634222,-499.31551606,9.973e-05,2]
[347657743,1736028634232,-500.0,9.987e-05,2]
[347657744,1736028634242,-500.0,9.987e-05,2]
[347657745,1736028634251,-500.0,9.987e-05,2]
[347657746,1736028634261,-588.96,9.987e-05,2]
[347657747,1736028634270,-510.82314793,9.987e-05,2]
[347657748,1736028634279,-539.78,9.987e-05,2]
[347657749,1736028634289,-500.0,9.987e-05,2]
[347657750,1736028634298,-500.0,9.987e-05,2]
[347657751,1736028634307,-500.0,9.987e-05,2]
[347657752,1736028634317,-500.0,9.987e-05,2]
[347657753,1736028634326,-500.0,9.987e-05,2]
[347657754,1736028634337,-500.0,9.987e-05,2]
[347657755,1736028634346,-500.0,9.987e-05,2]
[347657756,1736028634355,-500.0,9.987e-05,2]
[347657757,1736028634365,-1000.0,9.987e-05,2]
[347657758,1736028634374,-500.0,9.987e-05,2]
[347657759,1736028634383,-500.0,9.987e-05,2]
[347657760,1736028634392,-500.0,9.987e-05,2]
[347657761,1736028634401,-500.0,9.987e-05,2]
[347657762,1736028634411,-500.50105876,9.998e-05,2]
[347657763,1736028634420,-500.0,9.998e-05,2]
[347657764,1736028634431,-500.0,9.998e-05,2]
[347657765,1736028634440,-500.0,9.998e-05,2]
[347657766,1736028634450,-500.0,9.998e-05,2]